Cogmind - Beta 13 --- EXPLORER MODE // 2024.04.01 @ 17:10:28 Player: jsbeckr Result: Self-destructed Performance ------------- Evolutions (9) 4500 Regions Visited (19) 3800 Robots Destroyed (148) 740 Value Destroyed (6948) 6948 Prototype IDs (14) 280 Alien Tech Used (0) 0 Bonus (2165) 2165 TOTAL SCORE: 18433 Bonus ------- High Alert Combat Kills 185 Follower Combat Kills 999 Entered Garrisons 200 Used RIF Installer 500 Entered DSFs 500 Friendly Fire -219 Cogmind --------- Core Integrity 901/1600 Matter 290/300 Energy 100/100 System Corruption 0% Temperature Cool (0) Movement Hovering (60) Location -1/Access Parts ------- > --- POWER (4) -------- (None) > --- PROPULSION (6) --- Improved Gyrokinetic Inverter Experimental Gyrokinetic Inverter > --- UTILITY (12) ----- (None) > --- WEAPON (4) ------- (None) > --- INVENTORY (5) ---- Quantum Reactor Impulse Thruster Array Advanced ECM Suite Peak State ------------ > --- POWER ------------ Neutrino Core Light Antimatter Reactor Light Antimatter Reactor Micro Antimatter Reactor > --- PROPULSION ------- Myomer Leg Biometal Leg Biometal Leg Biometal Leg Biometal Leg Biometal Leg > --- UTILITY ---------- Advanced Cryofiber Web Advanced Cooling System Large Storage Unit Improved Weapon Cycler Improved Heavy Armor Plating Graphene Brace Experimental EM Disruption Field > --- WEAPON ----------- Tesla Rifle Compact HERF Cannon Long-range Phase Cannon KE Penetrator > --- INVENTORY -------- Improved Fusion Compressor Advanced Cooling System Medium Storage Unit Energy Well Advanced Weight Redist. System Advanced Target Analyzer Quantum Capacitor Improved Medium Armor Plating Compact HERF Cannon Long-range Phase Cannon Railgun Advanced Datajack Improved Remote Datajack [Rating: 157] Favorites ----------- Power Light Nuclear Core Engine Angular Momentum Engine Power Core Light Nuclear Core Reactor Light Antimatter Reactor Propulsion Aluminum Leg Leg Aluminum Leg Hover Unit Antigrav Array Flight Unit Cesium-ion Thruster Utility Large Storage Unit Device Advanced Weight Redist. System Storage Large Storage Unit Processor Advanced Targeting Computer Hackware Hacking Suite Protection Hardened Medium Armor Plating Weapon Ion Cannon Energy Gun Tesla Rifle Energy Cannon Ion Cannon Ballistic Gun Light Assault Rifle Launcher Tesla Bomb Launcher Special Weapon Plasma Flamer Impact Weapon Mace Special Melee Weapon Datajack Build | -11 -10 -10 -9 -8 -7 -7 -7 -6 -6 -6 -5 -4 -4 -4 -3 -3 -2 -2 -1 ------- Run | Yrd Mat Min Mat Mat Fac Was Fac Fac Gar Fac Fac Fac Upp Upp Res Arm Res DSF Acc Slots Evolved 19 | . 1 . 2 2 2 . . 2 . . 2 2 . . 2 . 2 . 2 Power 3 | . 1 . . . . . . 1 . . . 1 . . . . . . . Propulsion 4 | . . . 1 1 . . . 1 . . . . . . 1 . . . . Utility 10 | . . . 1 1 1 . . . . . 1 1 . . 1 . 2 . 2 Weapon 2 | . . . . . 1 . . . . . 1 . . . . . . . . Parts Attached 209 | 8 2 2 21 28 1 6 1 4 16 15 18 18 6 8 3 28 . 15 9 Power 34 | 1 1 . 3 2 . . . 1 3 1 4 7 1 1 1 6 . . 2 Engine 11 | 1 1 . 2 1 . . . . 1 1 . 4 . . . . . . . Core 14 | . . . 1 1 . . . 1 1 . 4 2 1 1 1 1 . . . Reactor 9 | . . . . . . . . . 1 . . 1 . . . 5 . . 2 Propulsion 69 | 2 1 . 5 11 . . 1 3 9 6 3 3 1 2 1 13 . 3 5 Treads . | . . . . . . . . . . . . . . . . . . . . Leg 51 | 2 1 . 5 7 . . 1 3 9 6 3 3 1 2 1 7 . . . Wheel . | . . . . . . . . . . . . . . . . . . . . Hover 11 | . . . . . . . . . . . . . . . . 3 . 3 5 Flight 7 | . . . . 4 . . . . . . . . . . . 3 . . . Utility 57 | 3 . . 5 8 . 2 . . 3 2 8 5 3 1 1 4 . 10 2 Device 36 | 1 . . 3 3 . 1 . . 3 2 5 5 . . 1 4 . 8 . Storage 11 | 1 . . 2 4 . . . . . . . . 3 . . . . 1 . Processor 2 | . . . . 1 . . . . . . 1 . . . . . . . . Hackware 1 | . . . . . . . . . . . 1 . . . . . . . . Protection 7 | 1 . . . . . 1 . . . . 1 . . 1 . . . 1 2 Artifact . | . . . . . . . . . . . . . . . . . . . . Weapon 49 | 2 . 2 8 7 1 4 . . 1 6 3 3 1 4 . 5 . 2 . Energy Gun 13 | 1 . 1 1 . . . . . 1 2 . 2 1 3 . . . 1 . Energy Cannon 12 | . . . 2 3 1 1 . . . 2 . . . . . 2 . 1 . Ballistic Gun 11 | 1 . . 3 2 . . . . . . 2 . . 1 . 2 . . . Ballistic Cannon . | . . . . . . . . . . . . . . . . . . . . Launcher 7 | . . 1 1 1 . 1 . . . 1 1 1 . . . . . . . Special Weapon 4 | . . . . 1 . 2 . . . . . . . . . 1 . . . Impact Weapon 1 | . . . . . . . . . . 1 . . . . . . . . . Slashing Weapon . | . . . . . . . . . . . . . . . . . . . . Piercing Weapon . | . . . . . . . . . . . . . . . . . . . . Special Melee Weapon 1 | . . . 1 . . . . . . . . . . . . . . . . Unidentified Prototypes 10 | . . . 1 . . 2 . . . 2 1 1 . . . 2 . . 1 Parts Lost 48 | . . . 1 2 . . . . 2 1 4 . . 7 . 10 . 12 9 Power 7 | . . . 1 . . . . . . . . . . 2 . 1 . 1 2 Propulsion 10 | . . . . . . . . . . . . . . 1 . 4 . 2 3 Utility 21 | . . . . 2 . . . . 1 1 3 . . 1 . 3 . 6 4 Weapon 10 | . . . . . . . . . 1 . 1 . . 3 . 2 . 3 . Highest Loss Streak 9 | . . . 1 1 . . . . 1 1 3 . . 7 . 8 . 9 9 To Critical Strikes 1 | . . . . . . . . . 1 . . . . . . . . . . Average Slot Usage (%) 94 | . 99 100 99 97 92 96 100 100 99 99 97 96 94 92 83 78 37 53 22 Engine 10 | . 24 25 13 8 7 7 7 6 6 11 6 10 10 9 4 2 . . . Core 4 | . . . 6 7 7 7 7 12 10 . 4 8 4 5 8 4 . . . Reactor 2 | . . . . . . . . . 1 6 4 1 5 5 4 6 12 9 3 Leg 26 | . 25 25 29 32 28 28 28 31 31 31 26 25 25 23 19 20 . . . Device 19 | . 12 12 20 22 14 18 21 18 19 24 25 19 20 19 14 16 4 20 4 Storage 6 | . 12 12 10 7 7 7 7 6 6 6 5 5 5 5 4 3 . . 1 Processor 1 | . . . . 1 7 5 . . . . . 5 5 5 4 2 . . . Protection 1 | . . . . . . 2 7 6 4 . . 3 . 1 4 3 . . 3 Energy Gun 6 | . 12 12 1 . . . . . 4 4 5 9 15 14 13 6 . 1 . Energy Cannon 5 | . . . 11 11 14 14 14 12 12 7 5 4 . . . 4 . . . Ballistic Gun 2 | . 12 . 3 3 . . . . . . 5 1 . . 4 2 . . . Launcher 2 | . . 11 3 . . . . . . 5 3 3 5 4 . . . . . Special Weapon 1 | . . . . . 7 6 7 6 1 . . . . . . . 4 3 . Naked Turns 5 | . . . . . . . . . . . . . . . . 5 . . . Heaviest Build 120 | 19 24 27 39 49 48 58 58 63 78 83 96 118 102 100 106 120 49 59 58 Greatest Support 174 | 20 20 20 30 54 54 54 57 72 97 97 96 110 110 110 118 174 49 82 47 Greatest Overweight (x) 9 | 2 1 1 1 9 . 1 1 . . . 1 1 . 1 1 2 . 1 1 Average Overweight (x) . | . . 1 . . . . 1 . . . . . . . . . . . . Largest Inventory Capacity 25 | 10 10 10 25 25 15 15 15 15 15 15 15 15 15 15 15 15 5 10 10 Average Capacity 12 | 6 10 10 10 14 15 15 15 15 15 15 15 15 14 15 15 13 5 5 8 Most Carried 15 | 5 9 10 11 15 12 14 15 15 15 15 15 15 15 15 12 15 5 6 5 Average Carried 11 | 4 6 9 9 11 12 12 14 14 14 14 14 13 13 13 9 12 5 3 2 Final Capacity 15 | 10 10 10 10 15 15 15 15 15 15 15 15 15 15 15 15 5 5 10 5 Final Carried 15 | 5 9 10 10 13 12 13 15 15 15 14 10 12 15 9 10 5 5 6 4 Class Distribution -------------------- 30% | Hacker-Mutant 24% | Scavenger-Tank 18% | Generator-Gunner 11% | Scavenger-Mutant 7% | Hacker-Tank 3% | Scavenger-Gunner Dominant Class ---------------- Hacker-Mutant | -10/Materials Hacker-Mutant | -10/Mines Hacker-Mutant | -9/Materials Scavenger-Mutant | -8/Materials Scavenger-Gunner | -7/Factory Scavenger-Gunner | -7/Waste Scavenger-Tank | -7/Factory Scavenger-Tank | -6/Factory Scavenger-Tank | -6/Garrison Scavenger-Tank | -6/Factory Hacker-Tank | -5/Factory Generator-Gunner | -4/Factory Generator-Gunner | -4/Upper Caves Generator-Gunner | -4/Upper Caves Generator-Gunner | -3/Research Scavenger-Tank | -3/Armory Scavenger-Tank | -2/Research Scavenger-Mutant | -2/DSF Hacker-Mutant | -1/Access Resources | -11 -10 -10 -9 -8 -7 -7 -7 -6 -6 -6 -5 -4 -4 -4 -3 -3 -2 -2 -1 ----------- Run | Yrd Mat Min Mat Mat Fac Was Fac Fac Gar Fac Fac Fac Upp Upp Res Arm Res DSF Acc Matter Collected 3579 | 173 129 30 265 432 . 90 10 40 155 192 315 325 483 136 200 419 . 135 50 Remotely . | . . . . . . . . . . . . . . . . . . . . Salvage Created 7894 | . 200 . 764 843 . . . 128 423 1157 834 599 302 1285 450 774 . 135 . Parts 375 | . 12 . 57 40 . . . 8 6 61 48 30 10 45 15 33 . 10 . Haulers Intercepted . | . . . . . . . . . . . . . . . . . . . . Recyclers Shooed 4 | . . . . 1 . . . . . 1 1 1 . . . . . . . Parts Field Recycled . | . . . . . . . . . . . . . . . . . . . . Retrieved Matter . | . . . . . . . . . . . . . . . . . . . . Parts Self-Destructed . | . . . . . . . . . . . . . . . . . . . . Prevented . | . . . . . . . . . . . . . . . . . . . . Kills | -11 -10 -10 -9 -8 -7 -7 -7 -6 -6 -6 -5 -4 -4 -4 -3 -3 -2 -2 -1 ------- Run | Yrd Mat Min Mat Mat Fac Was Fac Fac Gar Fac Fac Fac Upp Upp Res Arm Res DSF Acc Combat Hostiles Destroyed 126 | . 4 . 18 18 . . . 2 8 15 14 9 7 15 4 9 . 3 . Guns 42 | . 3 . 2 4 . . . . 1 3 7 6 5 2 4 2 . 3 . Cannons 52 | . . . 14 11 . . . 2 5 10 4 3 . . . 3 . . . AOE 12 | . 1 . 2 1 . . . . . 2 2 . 1 3 . . . . . Classes Destroyed 17 | . 2 . 3 2 . . . 2 3 1 . 1 . 1 . 1 . 1 . Worker 4 | . . . . . . . . 1 . 2 . . . . 1 . . . . Builder 3 | . . . . . . . . . . 1 1 1 . . . . . . . Recycler 1 | . . . . . . . . . . . . 1 . . . . . . . Operator 2 | . . . 1 . . . . . . . . . . . . 1 . . . Watcher 10 | . 1 . 1 1 . . . . . 2 2 1 . . 2 . . . . Swarmer 23 | . . . 3 3 . . . . . . 4 7 5 . 1 . . . . Cutter 3 | . . . . . . . . . . . . . . . . . . 3 . Grunt 50 | . 4 . 11 7 . . . 1 3 6 7 . 1 9 1 . . . . Brawler 7 | . . . . 1 . . . . 2 2 . . . 2 . . . . . Duelist 7 | . . . . 1 . . . . . . . . . 2 . 4 . . . Protector 1 | . . . . . . . . . . . . . . 1 . . . . . Sentry 19 | . . . 4 6 . . . . . 1 1 1 1 1 2 2 . . . Specialist 1 | . . . . . . . . . . . . . . . . 1 . . . Hunter 8 | . . . . . . . . 1 . 4 2 1 . . . . . . . Programmer 5 | . . . . . . . . . 1 2 . . . . . 2 . . . Behemoth 2 | . . . . . . . . . 2 . . . . . . . . . . Surgeon 1 | . . . . . . . . . 1 . . . . . . . . . . Thug 1 | . . . . . . . . . 1 . . . . . . . . . . Best Kill Streak 13 | . 3 . 7 5 . . . 2 3 5 11 5 3 13 4 3 . 1 . Combat Bots Only 13 | . 2 . 6 5 . . . 1 3 4 9 4 3 13 3 3 . 1 . Max Kills in Single Turn 3 | . 1 . 2 2 . . . 1 2 2 3 2 2 2 1 1 . 1 . Gunslinging 1 | . . . . . . . . . . . . . 1 . . . . . . Exploded 2 | . 1 . 2 1 . . . . . 1 2 . 1 2 . . . . . Melee . | . . . . . . . . . . . . . . . . . . . . Uniques/NPCs Destroyed . | . . . . . . . . . . . . . . . . . . . . Combat | -11 -10 -10 -9 -8 -7 -7 -7 -6 -6 -6 -5 -4 -4 -4 -3 -3 -2 -2 -1 -------- Run | Yrd Mat Min Mat Mat Fac Was Fac Fac Gar Fac Fac Fac Upp Upp Res Arm Res DSF Acc Hostile Shots Fired 1611 | . 13 . 63 95 . . . . 39 154 86 74 24 121 16 654 . 69 203 Missed 623 | . 2 . 17 23 . . . . 14 82 20 20 5 28 4 319 . 22 67 Damage Taken 10097 | . 92 . 208 493 . . 43 7 282 557 1075 489 255 1440 143 2306 . 1144 1563 Core 2592 | . 19 . 37 50 . . . . . 29 448 231 11 305 14 517 . 232 699 Absorbed by Shields 760 | . . . 99 176 . . . . 32 178 12 140 . . 38 . . 85 . Ignored by Resistances 6788 | . 58 . 200 412 . . 24 5 186 434 628 251 152 743 108 1961 . 697 929 Regen/Repaired (Parts) 557 | . . . 28 37 . 24 41 . 70 48 309 . . . . . . . . Core Remaining (%) 81 | 100 . 92 90 90 . . 100 . . 96 55 . . 52 . 59 . 84 . Volleys Fired 350 | . 12 . 33 53 . . . 3 21 64 29 23 10 32 14 35 . 21 . Largest 4 | . 2 . 2 2 . . . 3 3 3 4 3 3 4 4 4 . 1 . Hottest 304 | . 60 . 120 120 . . . 220 220 204 237 230 210 251 243 304 . 65 . Shots Fired 792 | . 24 . 57 103 . . . 7 54 120 79 67 29 79 56 96 . 21 . Gun 461 | . 24 . 11 40 . . . . 12 46 54 45 29 72 56 52 . 20 . Cannon 306 | . . . 45 61 . . . 6 41 66 22 21 . . . 44 . . . Launcher 22 | . . . 1 2 . . . . . 8 3 1 . 7 . . . . . Special 3 | . . . . . . . . 1 1 . . . . . . . . 1 . Kinetic 121 | . 12 . 11 40 . . . . . . 29 . . . 14 15 . . . Thermal 429 | . . . 45 61 . . . 7 54 112 47 43 9 14 14 23 . . . Explosive 3 | . . . 1 2 . . . . . . . . . . . . . . . Electromagnetic 238 | . 12 . . . . . . . . 8 3 24 20 65 28 58 . 20 . Robot Hit Streak 34 | . 11 . 17 32 . . . 25 18 16 17 14 27 29 34 14 . 7 . Robot Miss Streak 4 | . 1 . 2 2 . . . 1 1 2 4 2 1 1 1 2 . 2 . Penetration Max 1 | . . . . . . . . . . . 1 . . . 1 . . . . Secondary Targets 3 | . 1 . . . . . . . . . . . 2 . . . . . . Max Gunslinging Chain 1 | . 1 . . . . . . . . . . . 1 . . . . . . Shots Hit Robots 612 | . 21 . 39 85 . . . 4 46 99 54 45 23 68 44 69 . 15 . Core Hits 259 | . 10 . 21 29 . . . 4 20 36 29 19 9 26 18 32 . 6 . Critical Kills 7 | . . . . 2 . . . . 1 . 2 1 . . 1 . . . . Critical Parts Destroyed 11 | . . . . 1 . . . . . 5 2 2 1 . . . . . . Critical Strikes 23 | . 1 . . 3 . . . . 3 5 4 3 1 1 2 . . . . Burn 2 | . . . . . . . . . 2 . . . . . . . . . . Meltdown 3 | . . . . 2 . . . . 1 . . . . . . . . . . Destroy 16 | . . . . 1 . . . . . 5 4 3 1 . 2 . . . . Corrupt 2 | . 1 . . . . . . . . . . . . 1 . . . . . Melee Attacks 2 | . . . 2 . . . . . . . . . . . . . . . . Impact . | . . . . . . . . . . . . . . . . . . . . Slashing . | . . . . . . . . . . . . . . . . . . . . Piercing . | . . . . . . . . . . . . . . . . . . . . Sneak Attacks 2 | . . . 2 . . . . . . . . . . . . . . . . Combat Hostiles . | . . . . . . . . . . . . . . . . . . . . Follow-up Attacks . | . . . . . . . . . . . . . . . . . . . . Damage Inflicted 16729 | . 316 1 896 1913 . . . 91 1112 2955 1894 1509 521 2102 1294 1956 . 169 . Guns 8136 | . 228 . 181 525 . . . . 194 978 893 907 481 1545 1294 741 . 169 . Cannons 6516 | . . . 619 1210 . . . 91 918 1592 431 519 . . . 1136 . . . Explosions 2035 | . 88 . 96 173 . . . . . 349 570 83 40 557 . 79 . . . Melee . | . . . . . . . . . . . . . . . . . . . . Ramming 42 | . . 1 . 5 . . . . . 36 . . . . . . . . . Kinetic 1775 | . 69 . 181 525 . . . . . . 391 . . . 373 236 . . . Thermal 9507 | . 88 . 619 1210 . . . 91 1112 2570 1307 927 160 423 289 711 . . . Explosive 269 | . . . 96 173 . . . . . . . . . . . . . . . Electromagnetic 5136 | . 159 . . . . . . . . 349 196 582 361 1679 632 1009 . 169 . Impact . | . . . . . . . . . . . . . . . . . . . . Slashing . | . . . . . . . . . . . . . . . . . . . . Piercing . | . . . . . . . . . . . . . . . . . . . . Highest Corruption 3 | . . . . . . . . . 2 2 . . . . . 3 . . . Average Corruption 2 | . . . . . . . . . 1 2 . . . . . 2 . . . Corruption Purged . | . . . . . . . . . . . . . . . . . . . . Corruption Blocked 40 | . . . . . . . . . . . . . . . . 40 . . . Effects 20 | . . . . . . . . . 1 18 . . . . . 1 . . . Message Errors 4 | . . . . . . . . . . 4 . . . . . . . . . Matter Fused 2 | . . . . . . . . . . 1 . . . . . 1 . . . Heat Flow Errors 1 | . . . . . . . . . . 1 . . . . . . . . . Energy Discharges 3 | . . . . . . . . . 1 2 . . . . . . . . . Parts Fused 1 | . . . . . . . . . . 1 . . . . . . . . . Data Loss (minor) 3 | . . . . . . . . . . 3 . . . . . . . . . Data Loss (major) 3 | . . . . . . . . . . 3 . . . . . . . . . Misfires 1 | . . . . . . . . . . 1 . . . . . . . . . Weapon Failures 2 | . . . . . . . . . . 2 . . . . . . . . . Overload Shots . | . . . . . . . . . . . . . . . . . . . . Overflow Damage 225 | . . . . 30 . . . . 10 32 119 12 . 2 . 20 . . . Projectiles 134 | . . . . 30 . . . . 10 32 30 12 . . . 20 . . . Explosions 91 | . . . . . . . . . . . 89 . . 2 . . . . . Melee . | . . . . . . . . . . . . . . . . . . . . Knockbacks . | . . . . . . . . . . . . . . . . . . . . Impact . | . . . . . . . . . . . . . . . . . . . . Kinetic . | . . . . . . . . . . . . . . . . . . . . Secondary . | . . . . . . . . . . . . . . . . . . . . Self-Inflicted Damage 163 | . . . . . . . . . . . 102 5 . . . 56 . . . Shots 6 | . . . . . . . . . . . 4 1 . . . 1 . . . Rammed . | . . . . . . . . . . . . . . . . . . . . Targets Rammed 4 | . . 1 . 1 . . . . . 2 . . . . . . . . . Kicked 4 | . . 1 . 1 . . . . . 2 . . . . . . . . . Crushed . | . . . . . . . . . . . . . . . . . . . . Highest Temperature 761 | . 219 . 295 254 . . . 157 466 502 692 761 335 585 200 618 . 7 . Average Temperature 188 | . 93 . 90 68 . . . 54 156 148 282 297 164 252 64 293 . 2 . Received Heat Transfer 1750 | . 93 . 96 305 . . . . 39 174 228 18 90 515 39 153 . . . Effects 148 | . . . 1 . . . . . 10 11 44 43 . 17 . 22 . . . Shutdowns 47 | . . . . . . . . . 4 4 12 18 . 5 . 4 . . . Energy Bleed 14 | . . . 1 . . . . . 1 2 2 4 . 1 . 3 . . . Interference 34 | . . . . . . . . . 3 2 6 8 . 7 . 8 . . . Matter Decay 7 | . . . . . . . . . . . 2 3 . . . 2 . . . Short Circuit 8 | . . . . . . . . . . 1 4 . . 1 . 2 . . . Damage (minor) 11 | . . . . . . . . . . 1 4 3 . 2 . 1 . . . Damage (major) 21 | . . . . . . . . . 2 1 11 5 . . . 2 . . . Damage (core) 6 | . . . . . . . . . . . 3 2 . 1 . . . . . Siege Activations . | . . . . . . . . . . . . . . . . . . . . Robots Corrupted 16 | . . . . . . . . . . . . . 1 10 1 4 . . . Combat Hostiles 15 | . . . . . . . . . . . . . 1 10 . 4 . . . Parts Fried 42 | . 1 . . . . . . . . 2 2 1 3 12 7 12 . 2 . Impact Corruptions . | . . . . . . . . . . . . . . . . . . . . Robots Melted 5 | . . . . 2 . . . . 2 . 1 . . . . . . . . Combat Hostiles 5 | . . . . 2 . . . . 2 . 1 . . . . . . . . Parts Melted 31 | . . . 3 5 . . . 1 5 13 1 3 . . . . . . . Heat Transferred 13153 | . 100 . 999 1961 . . . 148 1924 3404 1545 1258 185 494 444 691 . . . Parts Sabotaged 6 | . . . . . . . . . . . . . . . . 6 . . . Parts Stolen . | . . . . . . . . . . . . . . . . . . . . Parts Stripped . | . . . . . . . . . . . . . . . . . . . . Power Chain Reactions 8 | . 2 . . . . . . . . 2 1 . 1 1 . 1 . . . Alert | -11 -10 -10 -9 -8 -7 -7 -7 -6 -6 -6 -5 -4 -4 -4 -3 -3 -2 -2 -1 ------- Run | Yrd Mat Min Mat Mat Fac Was Fac Fac Gar Fac Fac Fac Upp Upp Res Arm Res DSF Acc Peak Influence 905 | . 140 . 393 304 27 6 147 353 905 454 388 364 . . 182 264 37 63 15 Initial 345 | . . . . 118 9 6 . 52 193 345 132 139 . . 7 9 37 23 . Average 146 | . 45 . 143 133 10 4 13 176 708 315 175 146 . . 38 71 37 23 1 Maximum Alert Level 3 | . . . 1 1 . . . 1 3 2 1 1 . . . 1 . . . Low Security (%) 76 | 100 100 100 75 89 100 100 100 63 2 6 76 82 . . 100 87 100 100 100 Level 1 14 | . . . 24 10 . . . 36 7 75 23 17 . . . 12 . . . Level 2 3 | . . . . . . . . . 23 18 . . . . . . . . . Level 3 5 | . . . . . . . . . 66 . . . . . . . . . . Level 4 . | . . . . . . . . . . . . . . . . . . . . Level 5 . | . . . . . . . . . . . . . . . . . . . . High Security . | . . . . . . . . . . . . . . . . . . . . Max Security . | . . . . . . . . . . . . . . . . . . . . Squads Dispatched 33 | . . . 4 4 . . 2 3 . 7 4 2 . 1 . 3 . 2 1 Investigation 12 | . . . 2 . . . 1 1 . 3 3 . . . . 1 . . 1 Extermination 7 | . . . . . . . 1 . . 2 1 1 . . . 2 . . . Reinforcement 11 | . . . 2 4 . . . 1 . 1 . 1 . . . . . 2 . Assault 2 | . . . . . . . . . . 1 . . . 1 . . . . . Garrison 1 | . . . . . . . . 1 . . . . . . . . . . . Intercept . | . . . . . . . . . . . . . . . . . . . . Searches Triggered . | . . . . . . . . . . . . . . . . . . . . Construction Impeded 1 | . . . . . . . . . . 1 . . . . . . . . . Haulers Reinforced . | . . . . . . . . . . . . . . . . . . . . Active Scanning Responses . | . . . . . . . . . . . . . . . . . . . . Cargo Convoy Interrupts . | . . . . . . . . . . . . . . . . . . . . Stealth | -11 -10 -10 -9 -8 -7 -7 -7 -6 -6 -6 -5 -4 -4 -4 -3 -3 -2 -2 -1 --------- Run | Yrd Mat Min Mat Mat Fac Was Fac Fac Gar Fac Fac Fac Upp Upp Res Arm Res DSF Acc Distress Signals 15 | . 1 . . 1 . . . 1 . 1 1 2 . . . 7 . . 1 Communications Jammed . | . . . . . . . . . . . . . . . . . . . . Distress Signals . | . . . . . . . . . . . . . . . . . . . . Times Spotted 265 | . 6 . 22 34 . . 3 7 22 27 16 14 11 20 10 47 . 16 10 Peak Tracking Total 14 | . 2 . 6 4 . . 3 3 4 4 6 4 3 9 5 14 . 7 10 Tactical Retreats 24 | . . . 3 4 . . . . . 4 . . 1 5 1 1 . 4 1 Traps | -11 -10 -10 -9 -8 -7 -7 -7 -6 -6 -6 -5 -4 -4 -4 -3 -3 -2 -2 -1 ------- Run | Yrd Mat Min Mat Mat Fac Was Fac Fac Gar Fac Fac Fac Upp Upp Res Arm Res DSF Acc Traps Triggered 6 | . . . . . 1 . . . 1 . 1 . . . . . . 2 1 Indirectly 1 | . . . . . . . . . . . 1 . . . . . . . . Trap Hack Attempts . | . . . . . . . . . . . . . . . . . . . . Triggered . | . . . . . . . . . . . . . . . . . . . . Disarmed . | . . . . . . . . . . . . . . . . . . . . Reprogrammed . | . . . . . . . . . . . . . . . . . . . . Reused . | . . . . . . . . . . . . . . . . . . . . Traps Extracted . | . . . . . . . . . . . . . . . . . . . . Installed . | . . . . . . . . . . . . . . . . . . . . Triggered . | . . . . . . . . . . . . . . . . . . . . Machines | -11 -10 -10 -9 -8 -7 -7 -7 -6 -6 -6 -5 -4 -4 -4 -3 -3 -2 -2 -1 ---------- Run | Yrd Mat Min Mat Mat Fac Was Fac Fac Gar Fac Fac Fac Upp Upp Res Arm Res DSF Acc Machines Disabled 19 | . 1 . 2 . . . . 2 3 3 4 1 . 1 1 1 . . . Max in Single Turn 2 | . 1 . 1 . . . . . . 1 2 1 . 1 1 1 . . . Garrison Access 1 | . . . . . . . . . . . . . . . . . . . 1 Garrison Relay 1 | . . . . . . . . . 1 . . . . . . . . . . Machines Repaired . | . . . . . . . . . . . . . . . . . . . . Machines Dismantled . | . . . . . . . . . . . . . . . . . . . . Machines Sabotaged . | . . . . . . . . . . . . . . . . . . . . Overloaded Fab Kills . | . . . . . . . . . . . . . . . . . . . . Hacking | -11 -10 -10 -9 -8 -7 -7 -7 -6 -6 -6 -5 -4 -4 -4 -3 -3 -2 -2 -1 --------- Run | Yrd Mat Min Mat Mat Fac Was Fac Fac Gar Fac Fac Fac Upp Upp Res Arm Res DSF Acc Machines Accessed 37 | . 5 . 4 2 1 . 1 2 2 7 5 1 . . 1 4 1 . 1 Terminals 21 | . 4 . 1 1 1 . . . 2 3 3 1 . . 1 3 1 . . Fabricators . | . . . . . . . . . . . . . . . . . . . . Repair Stations 5 | . . . 1 1 . . . . . 1 1 . . . . 1 . . . Recycling Units 4 | . 1 . . . . . . . . 2 1 . . . . . . . . Scanalyzers 5 | . . . 2 . . . 1 1 . 1 . . . . . . . . . Garrison Access 2 | . . . . . . . . 1 . . . . . . . . . . 1 Total Hacks 107 | . 10 . 12 9 2 . 4 9 2 28 13 2 . . 3 10 1 . 2 Successful 85 | . 9 . 12 7 1 . 2 4 2 24 10 1 . . 3 7 1 . 2 Failed 22 | . 1 . . 2 1 . 2 5 . 4 3 1 . . . 3 . . . Catastrophic 2 | . . . . . . . . . . . 1 1 . . . . . . . Database Lockouts . | . . . . . . . . . . . . . . . . . . . . Manual 4 | . . . . . . . . . . 4 . . . . . . . . . Terminals 50 | . 8 . 4 5 2 . . . 2 8 8 2 . . 3 7 1 . . Fabricators . | . . . . . . . . . . . . . . . . . . . . Repair Stations 17 | . . . 2 4 . . . . . 4 4 . . . . 3 . . . Recycling Units 9 | . 2 . . . . . . . . 6 1 . . . . . . . . Scanalyzers 24 | . . . 6 . . . 4 4 . 10 . . . . . . . . . Garrison Access 7 | . . . . . . . . 5 . . . . . . . . . . 2 Terminal Hacks 39 | . 7 . 4 3 1 . . . 2 5 6 1 . . 3 6 1 . . Record 10 | . 2 . . . . . . . . . 4 . . . 3 1 . . . Robot Analysis 3 | . . . 1 . . . . . . . 1 1 . . . . . . . Prototype ID Bank 2 | . 1 . . . . . . . . 1 . . . . . . . . . Open Door 1 | . . . . . . . . . . . . . . . . 1 . . . Open DSF 3 | . . . . . . . . . . 1 1 . . . . . 1 . . Emergency Access Points 3 | . . . . 1 . . . . 1 . . . . . . 1 . . . Alert Level 3 | . . . 1 1 . . . . . . . . . . . 1 . . . Locate Traps 2 | . . . . . . . . . . 1 . . . . . 1 . . . Dispatch Records 3 | . 1 . 1 . . . . . . 1 . . . . . . . . . Patrol Status 1 | . 1 . . . . . . . . . . . . . . . . . . Reinforcement Status 1 | . . . 1 . . . . . . . . . . . . . . . . Registered Prototypes 2 | . 1 . . 1 . . . . . . . . . . . . . . . Zone Layout 4 | . 1 . . . 1 . . . . 1 . . . . . 1 . . . Patrol Navigation 1 | . . . . . . . . . 1 . . . . . . . . . . Fabricator Hacks . | . . . . . . . . . . . . . . . . . . . . Repair Station Hacks 14 | . . . 2 4 . . . . . 3 4 . . . . 1 . . . Scan Component 8 | . . . 1 2 . . . . . 2 2 . . . . 1 . . . Repair 6 | . . . 1 2 . . . . . 1 2 . . . . . . . . Recycling Unit Hacks 8 | . 2 . . . . . . . . 6 . . . . . . . . . Process 1 | . . . . . . . . . . 1 . . . . . . . . . Report Inventory 4 | . 1 . . . . . . . . 3 . . . . . . . . . Retrieve Matter 1 | . . . . . . . . . . 1 . . . . . . . . . Retrieve Components 2 | . 1 . . . . . . . . 1 . . . . . . . . . Scanalyzer 20 | . . . 6 . . . 2 2 . 10 . . . . . . . . . Insert Component 10 | . . . 3 . . . 1 1 . 5 . . . . . . . . . Analyze 10 | . . . 3 . . . 1 1 . 5 . . . . . . . . . Garrison Access Hacks 4 | . . . . . . . . 2 . . . . . . . . . . 2 Unlock Access 1 | . . . . . . . . 1 . . . . . . . . . . . Seal Access 1 | . . . . . . . . . . . . . . . . . . . 1 Coupler Status 2 | . . . . . . . . 1 . . . . . . . . . . 1 Unauthorized Hacks . | . . . . . . . . . . . . . . . . . . . . Terminals . | . . . . . . . . . . . . . . . . . . . . Fabricators . | . . . . . . . . . . . . . . . . . . . . Repair Stations . | . . . . . . . . . . . . . . . . . . . . Recycling Units . | . . . . . . . . . . . . . . . . . . . . Scanalyzers . | . . . . . . . . . . . . . . . . . . . . Garrison Access . | . . . . . . . . . . . . . . . . . . . . Data Cores Recovered 1 | . . . 1 . . . . . . . . . . . . . . . . Used . | . . . . . . . . . . . . . . . . . . . . Hacking Detections 25 | . 2 . 2 2 1 . 1 2 1 5 5 1 . . 1 2 . . . Full Trace Events 12 | . 1 . 2 . . . 1 1 . 3 3 . . . . 1 . . . Feedback Events . | . . . . . . . . . . . . . . . . . . . . Feedback Blocked . | . . . . . . . . . . . . . . . . . . . . Robot Schematics Acquired . | . . . . . . . . . . . . . . . . . . . . Robots Built . | . . . . . . . . . . . . . . . . . . . . Authchips . | . . . . . . . . . . . . . . . . . . . . Time . | . . . . . . . . . . . . . . . . . . . . Total Robot Build Rating . | . . . . . . . . . . . . . . . . . . . . Part Schematics Acquired 9 | . . . 2 . . . 1 1 . 5 . . . . . . . . . Parts Built . | . . . . . . . . . . . . . . . . . . . . Authchips . | . . . . . . . . . . . . . . . . . . . . Time . | . . . . . . . . . . . . . . . . . . . . Total Part Build Rating . | . . . . . . . . . . . . . . . . . . . . Parts Repaired 6 | . . . 1 2 . . . . . 1 2 . . . . . . . . Time 221 | . . . 26 64 . . . . . 37 94 . . . . . . . . Parts Recycled . | . . . . . . . . . . . . . . . . . . . . Recycled Matter 10 | . . . . . . . . . . 10 . . . . . . . . . Retrieved Matter . | . . . . . . . . . . . . . . . . . . . . Retrieved Components . | . . . . . . . . . . . . . . . . . . . . Parts Scanalyzed 9 | . . . 2 . . . 1 1 . 5 . . . . . . . . . Part Schematics Acquired 9 | . . . 2 . . . 1 1 . 5 . . . . . . . . . Parts Damaged 1 | . . . . . . . . . . 1 . . . . . . . . . Bothacking | -11 -10 -10 -9 -8 -7 -7 -7 -6 -6 -6 -5 -4 -4 -4 -3 -3 -2 -2 -1 ------------ Run | Yrd Mat Min Mat Mat Fac Was Fac Fac Gar Fac Fac Fac Upp Upp Res Arm Res DSF Acc Used RIF Installer 1 | . . . . . . . . . 1 . . . . . . . . . . Robots Hacked 2 | . . . 1 . . . . . . . . . . . . . . 1 . Non-combat 1 | . . . 1 . . . . . . . . . . . . . . . . Combat 1 | . . . . . . . . . . . . . . . . . . 1 . Robot Hacks Applied 3 | . . . 2 . . . . . . . . . . . . . . 1 . parse_system 1 | . . . . . . . . . . . . . . . . . . 1 . no_distress 1 | . . . 1 . . . . . . . . . . . . . . . . find_station 1 | . . . 1 . . . . . . . . . . . . . . . . Relay Couplers Released 3 | . . . . . . . . . 3 . . . . . . . . . . Machine Destruction 3 | . . . . . . . . . 3 . . . . . . . . . . Fabnet Peak Effective % . | . . . . . . . . . . . . . . . . . . . . Robots Rewired . | . . . . . . . . . . . . . . . . . . . . Allies Hacked . | . . . . . . . . . . . . . . . . . . . . Hacks Repelled . | . . . . . . . . . . . . . . . . . . . . Allies | -11 -10 -10 -9 -8 -7 -7 -7 -6 -6 -6 -5 -4 -4 -4 -3 -3 -2 -2 -1 -------- Run | Yrd Mat Min Mat Mat Fac Was Fac Fac Gar Fac Fac Fac Upp Upp Res Arm Res DSF Acc Total Allies 20 | . . . . . . 20 . . . . . . . . . . . . . Largest Group 20 | . . . . . . 20 20 14 9 . . . . . . . . . . Highest-Rated Group 485 | . . . . . . 485 485 401 287 . . . . . . . . . . Highest-Rated Ally 35 | . . . . . . 35 35 35 35 . . . . . . . . . . Total Orders . | . . . . . . . . . . . . . . . . . . . . Ally Attacks 217 | . . . . . . . 48 50 119 . . . . . . . . . . Total Damage 6024 | . . . . . . . 665 1418 3941 . . . . . . . . . . Kills 32 | . . . . . . . 6 9 17 . . . . . . . . . . Allies Corrupted 1 | . . . . . . . . . 1 . . . . . . . . . . Allies Melted . | . . . . . . . . . . . . . . . . . . . . Intel | -11 -10 -10 -9 -8 -7 -7 -7 -6 -6 -6 -5 -4 -4 -4 -3 -3 -2 -2 -1 ------- Run | Yrd Mat Min Mat Mat Fac Was Fac Fac Gar Fac Fac Fac Upp Upp Res Arm Res DSF Acc Robot Analysis Total 3 | . . . 1 . . . . . . . 1 1 . . . . . . . Derelict Logs Recovered 3 | . . . . . . . . . . . . . 2 1 . . . . . Drone Launches 14 | . . . . . . . . . . . 4 4 2 4 . . . . . Drone Recoveries 11 | . . . . . . . . . . . 2 3 2 4 . . . . . Exploration | -11 -10 -10 -9 -8 -7 -7 -7 -6 -6 -6 -5 -4 -4 -4 -3 -3 -2 -2 -1 ------------- Run | Yrd Mat Min Mat Mat Fac Was Fac Fac Gar Fac Fac Fac Upp Upp Res Arm Res DSF Acc Turns Passed 13246 | 1305 708 957 745 1344 28 558 485 242 894 1100 768 663 1528 445 477 592 10 207 190 Spaces Moved 7631 | 476 352 470 336 612 23 394 248 165 654 641 394 343 1197 270 276 419 20 163 178 Core 56 | 26 . . . . . . . . . . . . . . . 12 . . 18 Treads . | . . . . . . . . . . . . . . . . . . . . Legs 7071 | 450 352 470 336 604 23 394 248 165 654 641 394 343 1197 270 276 254 . . . Wheels . | . . . . . . . . . . . . . . . . . . . . Hover 368 | . . . . . . . . . . . . . . . . 25 20 163 160 Flight 136 | . . . . 8 . . . . . . . . . . . 128 . . . Fastest Speed 34 | 50 120 190 120 106 120 120 190 120 118 118 120 120 120 120 118 34 52 46 46 Average Speed 133 | 118 188 190 164 149 120 134 190 120 119 119 130 143 120 122 152 91 52 52 78 Slowest Speed 765 | 150 190 190 190 765 120 190 190 120 120 120 190 190 120 190 190 182 52 110 106 Overloaded Moves . | . . . . . . . . . . . . . . . . . . . . Propulsion Burnouts . | . . . . . . . . . . . . . . . . . . . . Robots Hopped . | . . . . . . . . . . . . . . . . . . . . Cave-ins Triggered . | . . . . . . . . . . . . . . . . . . . . Exploration Rate (%) 37 | 50 58 82 27 45 2 96 9 7 75 18 8 10 93 34 9 36 1 89 8 Regions Visited 19 Branch Regions 4 Pre-discovered Areas 1 | . . . . . . . . . . . . . 1 . . . . . . Known Exits Taken 15 | 1 1 1 1 1 . . 1 1 . 1 1 1 1 1 1 1 1 . . Unknown Exits Taken . | . . . . . . . . . . . . . . . . . . . . Scrap Searched 8 | . . 2 . . . . . . . . . . 4 2 . . . . . Spaces Dug . | . . . . . . . . . . . . . . . . . . . . Terrain Destroyed 125 | . 4 . 15 15 . . . . 1 20 38 2 2 15 . 13 . . . Melee . | . . . . . . . . . . . . . . . . . . . . Projectile 37 | . . . 5 2 . . . . 1 7 17 2 . . . 3 . . . AOE 88 | . 4 . 10 13 . . . . . 13 21 . 2 15 . 10 . . . Terrain Rammed . | . . . . . . . . . . . . . . . . . . . . Walls Destroyed . | . . . . . . . . . . . . . . . . . . . . Machines Disabled . | . . . . . . . . . . . . . . . . . . . . Actions | -11 -10 -10 -9 -8 -7 -7 -7 -6 -6 -6 -5 -4 -4 -4 -3 -3 -2 -2 -1 --------- Run | Yrd Mat Min Mat Mat Fac Was Fac Fac Gar Fac Fac Fac Upp Upp Res Arm Res DSF Acc Total 10059 | 1215 377 533 478 954 24 421 262 205 725 854 588 470 1265 318 296 561 19 265 229 Wait 1575 | 727 7 58 53 222 . 11 10 21 11 111 128 54 38 6 . 49 . 34 35 Move 7612 | 475 351 469 335 611 23 393 247 165 651 640 393 342 1196 269 275 418 19 162 178 Hop . | . . . . . . . . . . . . . . . . . . . . Pick Up 147 | 5 5 2 17 19 . 5 3 6 8 8 9 15 13 . 4 10 . 13 5 Fast Attach 43 | 7 . . . 9 . . . . 1 2 2 . . 1 . 16 . 5 . Attach 65 | . 1 . 5 6 1 3 . 2 1 1 9 4 1 6 3 3 . 10 9 Detach 16 | . . . 1 3 . . . . . . 2 2 1 1 . 2 . 3 1 Swap 102 | 1 1 2 16 13 . 3 1 2 14 12 8 14 5 1 . 9 . . . Drop 123 | . . 1 16 17 . 3 1 6 15 14 8 16 1 1 . 19 . 4 1 Fire 350 | . 12 . 33 53 . . . 3 21 64 29 23 10 32 14 35 . 21 . Melee 2 | . . . 2 . . . . . . . . . . . . . . . . Ram . | . . . . . . . . . . . . . . . . . . . . Kick 4 | . . 1 . 1 . . . . . 2 . . . . . . . . . Crush . | . . . . . . . . . . . . . . . . . . . . Escape Stasis 16 | . . . . . . . . . 3 . . . . . . . . 13 . Rewire 4 | . . . . . . 3 . . . . . . . 1 . . . . . Trap . | . . . . . . . . . . . . . . . . . . . . Miscellaneous . | . . . . . . . . . . . . . . . . . . . . Route ------- -11/Scrapyard -10/Materials (discovered 2 exits: *Mat / *Min) -10/Mines (discovered 2 exits: *Mat x2) -9/Materials -8/Materials -7/Factory -7/Waste -7/Factory -6/Factory -6/Garrison (discovered 3 exits: *Fac x3) -6/Factory -5/Factory -4/Factory (discovered 2 exits: *Upp x2) -4/Upper Caves -4/Upper Caves (discovered 2 exits: *Res / War) -3/Research -3/Armory -2/Research -2/DSF -1/Access History --------- Turn | Location | Event 2 | -11/Scrapyard | Met Revision 17 11 | -11/Scrapyard | Identified exit to Materials 11 | -11/Scrapyard | Discovered exit to Materials (range 15) 1259 | -11/Scrapyard | Assembled infested the area 1306 | -11/Scrapyard | Entered Materials 1306 | -10/Materials | Evolved 1 slot: Power x1 1307 | -10/Materials | Build established: Hacker-Mutant 1484 | -10/Materials | Identified exit to Materials 1484 | -10/Materials | Discovered exit to Materials (range 11) 1865 | -10/Materials | Identified exit to Mines 1865 | -10/Materials | Discovered exit to Mines (range 8) 2014 | -10/Materials | Entered Mines 2051 | -10/Mines | A weapon hastily lodged in a ceiling crevice suddenly fell to the ground 2068 | -10/Mines | Received a Rocket Launcher from a helpful Derelict 2227 | -10/Mines | Found a hidden stash of uninstalled traps 2271 | -10/Mines | Discovered exit to Materials (range 10) 2396 | -10/Mines | Discovered exit to Materials (range 4) 2971 | -10/Mines | Entered Materials 2971 | -9/Materials | Evolved 2 slots: Propulsion x1, Utility x1 3015 | -9/Materials | Repaired Aluminum Leg 3337 | -9/Materials | Identified exit to Materials 3337 | -9/Materials | Discovered exit to Materials (range 15) 3716 | -9/Materials | Entered another Materials area 3716 | -8/Materials | Evolved 2 slots: Propulsion x1, Utility x1 3983 | -8/Materials | Build established: Scavenger-Mutant 4180 | -8/Materials | Repaired Imp. Ion Engine 4214 | -8/Materials | Repaired Shield Generator 4932 | -8/Materials | Identified exit to Factory 4932 | -8/Materials | Discovered exit to Factory (range 15) 5060 | -8/Materials | Entered Factory 5060 | -7/Factory | Evolved 2 slots: Utility x1, Weapon x1 5088 | -7/Factory | Sucked down chute 5088 | -7/Factory | Entered Waste 5089 | -7/Waste | Joined by Warlord forces that had cleared the area 5287 | -7/Waste | Found Prototype Launcher 5288 | -7/Waste | Identified Com. Tesla Bomb Launcher 5308 | -7/Waste | Identified exit to Factory 5308 | -7/Waste | Discovered exit to Factory (range 16) 5345 | -7/Waste | Build established: Scavenger-Gunner 5646 | -7/Waste | Entered Factory 5646 | -7/Factory | Accompanied by 20 allies 5786 | -7/Factory | Build established: Scavenger-Tank 6051 | -7/Factory | Lost 6 allies 6087 | -7/Factory | Identified exit to Factory 6087 | -7/Factory | Discovered exit to Factory (range 15) 6131 | -7/Factory | Entered another Factory area 6131 | -6/Factory | Accompanied by 14 allies 6131 | -6/Factory | Evolved 2 slots: Power x1, Propulsion x1 6350 | -6/Factory | Garrison activated, responded to threat 6373 | -6/Factory | Identified exit to Garrison 6373 | -6/Factory | Entered Garrison 6373 | -6/Garrison | Accompanied by 9 allies 6394 | -6/Garrison | Spotted B-75 Beast 6402 | -6/Garrison | Destroyed B-75 Beast 6460 | -6/Garrison | Triggered checkpoint 6582 | -6/Garrison | Spotted B-75 Beast 6588 | -6/Garrison | Triggered checkpoint 6597 | -6/Garrison | Triggered checkpoint 6602 | -6/Garrison | Destroyed B-75 Beast 6603 | -6/Garrison | Triggered checkpoint 6649 | -6/Garrison | Lost 3 allies 6666 | -6/Garrison | Triggered checkpoint 6698 | -6/Garrison | Triggered checkpoint 6748 | -6/Garrison | Lost 3 allies 6792 | -6/Garrison | Identified exit to Factory 6792 | -6/Garrison | Discovered exit to Factory (range 8) 6820 | -6/Garrison | Attempted to access garrison exit controls, blocked by remote lockdown 6950 | -6/Garrison | Triggered checkpoint 7003 | -6/Garrison | Discovered exit to Factory (range 14) 7215 | -6/Garrison | Discovered exit to Factory (range 14) 7225 | -6/Garrison | Installed Relay Interface Framework 7229 | -6/Garrison | Spotted B-75 Beast 7233 | -6/Garrison | P-60 Hacker assimilated allied C1-3GR(m) 7267 | -6/Garrison | Entered Factory 7553 | -6/Factory | Found Prototype Processor 7617 | -6/Factory | First assault squad dispatched 8211 | -6/Factory | Spotted B-75 Beast 8297 | -6/Factory | Repaired Adv. Phase Shifter 8351 | -6/Factory | Identified exit to Factory 8351 | -6/Factory | Discovered exit to Factory (range 6) 8367 | -6/Factory | Entered another Factory area 8367 | -5/Factory | Evolved 2 slots: Utility x1, Weapon x1 8367 | -5/Factory | Identified Exp. Targeting Computer 8428 | -5/Factory | Build established: Hacker-Tank 8901 | -5/Factory | Repaired Proton Missile Launcher 8952 | -5/Factory | Repaired Arm. Leg 9030 | -5/Factory | Destroyed 9 combat bots 9039 | -5/Factory | Lost 3 parts (2u1w) 9046 | -5/Factory | Identified exit to Factory 9046 | -5/Factory | Discovered exit to Factory (range 15) 9135 | -5/Factory | Entered another Factory area 9135 | -4/Factory | Accompanied by 2 allies 9135 | -4/Factory | Evolved 2 slots: Power x1, Utility x1 9247 | -4/Factory | Identified exit to Upper Caves 9247 | -4/Factory | Discovered exit to Upper Caves (range 11) 9377 | -4/Factory | Found Prototype Launcher 9378 | -4/Factory | Identified Tesla Bomb Launcher 9781 | -4/Factory | Discovered exit to Upper Caves (range 4) 9798 | -4/Factory | Entered Upper Caves 9798 | -4/Upper Caves | Accompanied by 2 allies 9817 | -4/Upper Caves | Attracted the attention of an 0b10 checkpoint 9851 | -4/Upper Caves | Build established: Generator-Gunner 10365 | -4/Upper Caves | Identified exit to Upper Caves 10365 | -4/Upper Caves | Discovered exit to Upper Caves (range 20) 10402 | -4/Upper Caves | Learned location of Quarantine (-2) 10510 | -4/Upper Caves | Learned Research trap positions 11326 | -4/Upper Caves | Entered another Upper Caves area 11326 | -4/Upper Caves | Accompanied by 2 allies 11403 | -4/Upper Caves | Identified exit to Research 11403 | -4/Upper Caves | Discovered exit to Research (range 14) 11413 | -4/Upper Caves | Identified exit to Warlord 11626 | -4/Upper Caves | Attracted the attention of an 0b10 outpost 11730 | -4/Upper Caves | Destroyed 13 combat bots 11734 | -4/Upper Caves | Lost 7 parts (2p1n1u3w) 11771 | -4/Upper Caves | Entered Research 11771 | -3/Research | Evolved 2 slots: Propulsion x1, Utility x1 11772 | -3/Research | Loaded intel: 97 trap records 12228 | -3/Research | Identified exit to Armory 12228 | -3/Research | Discovered exit to Armory (range 15) 12248 | -3/Research | Entered Armory 12249 | -3/Armory | Met VL-GR5, who suggested a friendly competition 12276 | -3/Armory | Found Prototype Device 12277 | -3/Armory | Identified Exp. EM Disruption Field 12355 | -3/Armory | Found Quantum Capacitor 12680 | -3/Armory | Build established: Scavenger-Tank 12809 | -3/Armory | Lost 8 parts (1p3n3u1w) 12834 | -3/Armory | Identified exit to Research 12834 | -3/Armory | Discovered exit to Research (range 4) 12840 | -3/Armory | Entered Research 12840 | -2/Research | Evolved 2 slots: Utility x2 12850 | -2/Research | Identified exit to DSF 12850 | -2/Research | Entered DSF 12880 | -2/DSF | Additional patrols routed to DSF 13049 | -2/DSF | Identified exit to Access 13049 | -2/DSF | Discovered exit to Access (range 14) 13057 | -2/DSF | Entered Access 13057 | -1/Access | Evolved 2 slots: Utility x2 13080 | -1/Access | Lost 9 parts (1p2n3u3w) 13123 | -1/Access | Spotted B-99 Colossus 13219 | -1/Access | Lost 9 parts (2p3n4u) 13247 | -1/Access | Self-destructed Last Messages --------------- 13166_ Penetrated by Slug. 13166_ Slug penetrates Wall. 13167_ Wall collapses. 13170_ Slug penetrates Wall. 13173_ Penetrated by Slug. 13173_ Slug penetrates Wall. 13173_ Imp. Linear Gravjet destroyed. 13175_ Adv. ECM Suite destroyed. 13177_ Penetrated by Slug. 13177_ Slug penetrates Wall. 13177_ Penetrated by Slug. 13177_ Dropped Med. Storage Unit. 13179_ Triggered Alarm Trap. 13179_ An alarm sounds. 13179_ ALERT: Alarm triggered, dispatching investigation squad. 13188_ Gyrokinetic Inverter destroyed. 13189_ Acquired Impulse Thruster Array. 13195_ Slug penetrates Wall. 13214_ W-44 Eye distress signal alerts nearby ally. [Achievement: 10k Club] Map ----- +----------------------------------------------------+ | ????????????"" + # ""#?????????????????? | | ??????????"" # # ""#?????????????????? | | ????????? ?# # ""#?????????????????? | | ?????????? ??# # #?????????????????? | | ??????????? ???# # #?????????????????? | | ????????????????# ########?????????????????? | | ????????????????# #????????????????????????? | | ????????????????# #???##########???????????? | | ????????????????# #?? #???????????? | | ????????????????# #?? #???????????? | | ????????????????# #? #???????????? | | ????????????????# #? #???????????? | | ?????????????? # # #???????????? | | ??????????????? # # ]] !#???????????? | | ????????????????/ + ]] #???????????? | | ????????????????# # #???????????? | | ????????????????# # #???????????? | | ????????????????# #? #???????????? | | ????????????????# #? #???????????? | | ????????????????# #?? #???????????? | | ????????????????# #??###########???????????? | | ????????????????# ###########??????????????? | | ????????????????# # ss #??????????????? | | ????????????????# # s #??????????????? | | ????????????????# # s #??????????????? | | ????????????????# #@" #??????????????? | | ????????????????# #""" #??????????????? | | ????????????????# # """ #??????????????? | | ????????????????# # " #??????????????? | | ????????????????# # #??????????????? | | ????????????????# # #??????????????? | | ????????????????# # " #??????????????? | | ????????????????# #""" #??????????????? | | ????????????????# # """ #??????????????? | | ????????????????# # " #??????????????? | | ????????????????# +m #??????????????? | | ????????????????# # #??????????????? | | ????????????????# # #??????????????? | | ????????????????# ###########??????????????? | | ????????????????# ????????????????????????? | | ????????????????# ????????????????????????? | | ????????????????# ???????????????????????? | | ????????????????# ???????????????????????? | | ????????????????# ???????????????????????? | | ????????????????# ??????????????????????? | | ????????????????# ??????????????????????? | | ???????????????? ###??????????????????????? | | ??????????????? ?????????????????????????? | | ???????????????? ?????????????????????????? | | ??????????????????? ?????????????????????????? | +----------------------------------------------------+ Best States ------------- Heat Dissipation 77 Energy Generation 77 Energy Capacity 900 Matter Stores 300 Matter Capacity 300 Sight Range 16 Terrain Scan Range 14 Terrain Scan Density 10 ECM Strength 4 Cloak Strength 3 Additional Mass Support 9 Base Temperature (-) 200 EM Shielding 2 Armor Coverage 600 Resistance: KI 55 Resistance: TH 45 Resistance: EX 35 Resistance: EM 100 Resistance: I 35 Resistance: S 35 Resistance: P 35 Propulsion Shielding 33 Weapon Cycling 20 Phase Shifting 15 Evasion (%) 70 Targeting Accuracy 8 Offensive Hacking 30 Item Schematics ----------------- Aluminum Leg | -9/Materials | Scanalyzed Enh. Autogun | -9/Materials | Scanalyzed Imp. Aluminum Leg | -7/Factory | Scanalyzed Lgt. Deuterium Engine | -6/Factory | Scanalyzed Biometal Leg | -6/Factory | Scanalyzed Carbon-fiber Leg | -6/Factory | Scanalyzed Lgt. Fission Core | -6/Factory | Scanalyzed Flexi-carbon Leg | -6/Factory | Scanalyzed Imp. Heavy Armor Plating | -6/Factory | Scanalyzed Robot Schematics ------------------ None Fabricated ------------ Nothing Alien Tech Used ----------------- None Achievements -------------- 10k Club Curiosity Killed The Cat Dangerous Findings Denied? It's Just You More Power To You Respectable Loadout Rockin' Loadout Superinsulated We Are Legion Challenges ------------ None Game ------ Seed MatterBombSource Manual? 0 Play Time 03:03:55 Cumulative 22.8 hours Start 2024.03.31 @ 17:43:57 End 2024.04.01 @ 17:10:28 Sessions 3 Manual Loads 0 Difficulty Explorer Special Mode None Game No. 25 Rogue 17 Adventurer 3 Explorer 5 Win Type - Total 0 Types 0/0/0/0/0/0/0/0/0 Lore% 18 Gallery% 24 Achievement% 23 Wizard Run 0 Options --------- Layout 1 ASCII 0 Keyboard 0 Movement Mouse Keybinds 0 Fullscreen 2 Font 32/Tamsyn Map View 77x35 Zoom Use 0% Tactical HUD 1 Map Filters NONE Filters NONE Steam 1 RUN: c5d62856-064f-4473-acb9-b2658f9ea49d